[Event "Titled Tuesday Blitz March 14 Late 2023"]
[White "Ibarra Jerez, Jose Carlos"]
[Black "Sarana, Alexey"]
[WhiteFideId "2226332"]
[BlackFideId "24133795"]
[WhiteElo "2638"]
[BlackElo "2714"]
[Result "1-0"]
[Round "07"]
[TimeControl "180+2"]
[Date "2023.03.14"]
[WhiteClock "0:00:06"]
[BlackClock "0:00:02"]

1. a3 {[%clk 0:02:59]}  g6 {[%clk 0:02:54]} 2. e4 {[%clk 0:02:58]}  Bg7 {[%clk 0:02:55]} 3. d4 {[%clk 0:02:58]}  d5 {[%clk 0:02:51]} 4. exd5 {[%clk 0:02:54]}  Qxd5 {[%clk 0:02:52]} 5. Nf3 {[%clk 0:02:53]}  Bg4 {[%clk 0:02:51]} 6. Be2 {[%clk 0:02:53]}  Nc6 {[%clk 0:02:50]} 7. c4 {[%clk 0:02:51]}  Qd7 {[%clk 0:02:47]} 8. d5 {[%clk 0:02:50]}  Bxf3 {[%clk 0:02:48]} 9. Bxf3 {[%clk 0:02:47]}  Nd4 {[%clk 0:02:45]} 10. O-O {[%clk 0:02:45]}  Nxf3+ {[%clk 0:02:45]} 11. Qxf3 {[%clk 0:02:44]}  Nf6 {[%clk 0:02:45]} 12. Nc3 {[%clk 0:02:42]}  O-O {[%clk 0:02:45]} 13. Bg5 {[%clk 0:02:38]}  Rfe8 {[%clk 0:02:44]} 14. Rad1 {[%clk 0:02:32]}  c6 {[%clk 0:02:34]} 15. Rfe1 {[%clk 0:02:08]}  Rac8 {[%clk 0:02:24]} 16. d6 {[%clk 0:02:05]}  h6 {[%clk 0:00:57]} 17. dxe7 {[%clk 0:01:47]}  Qf5 {[%clk 0:00:57]} 18. Qxf5 {[%clk 0:01:38]}  gxf5 {[%clk 0:00:58]} 19. Bf4 {[%clk 0:01:06]}  Nh5 {[%clk 0:00:44]} 20. Bd6 {[%clk 0:00:59]}  b6 {[%clk 0:00:29]} 21. c5 {[%clk 0:00:53]}  Bf6 {[%clk 0:00:25]} 22. f3 {[%clk 0:00:52]}  Ng7 {[%clk 0:00:25]} 23. cxb6 {[%clk 0:00:45]}  axb6 {[%clk 0:00:25]} 24. Na4 {[%clk 0:00:46]}  c5 {[%clk 0:00:22]} 25. Nxb6 {[%clk 0:00:45]}  Rc6 {[%clk 0:00:23]} 26. Nc4 {[%clk 0:00:42]}  Ne6 {[%clk 0:00:20]} 27. Rd5 {[%clk 0:00:33]}  f4 {[%clk 0:00:17]} 28. Rf5 {[%clk 0:00:26]}  Bxe7 {[%clk 0:00:17]} 29. Bxf4 {[%clk 0:00:23]}  Bf8 {[%clk 0:00:12]} 30. Bd2 {[%clk 0:00:19]}  Rd8 {[%clk 0:00:10]} 31. Bc3 {[%clk 0:00:19]}  Rc7 {[%clk 0:00:06]} 32. Rfe5 {[%clk 0:00:16]}  Bg7 {[%clk 0:00:03]} 33. Ba5 {[%clk 0:00:13]}  Bxe5 {[%clk 0:00:02]} 34. Nxe5 {[%clk 0:00:14]}  Rb8 {[%clk 0:00:02]} 35. Bxc7 {[%clk 0:00:14]}  Nxc7 {[%clk 0:00:03]} 36. Nc4 {[%clk 0:00:14]}  Ne6 {[%clk 0:00:03]} 37. Kf2 {[%clk 0:00:15]}  Nd4 {[%clk 0:00:03]} 38. Re5 {[%clk 0:00:12]}  Nb3 {[%clk 0:00:04]} 39. Rd5 {[%clk 0:00:11]}  Re8 {[%clk 0:00:04]} 40. Rd6 {[%clk 0:00:11]}  Ra8 {[%clk 0:00:03]} 41. Rxh6 {[%clk 0:00:10]}  Kg7 {[%clk 0:00:03]} 42. Rd6 {[%clk 0:00:10]}  Rh8 {[%clk 0:00:04]} 43. h3 {[%clk 0:00:10]}  Rh4 {[%clk 0:00:05]} 44. Ne3 {[%clk 0:00:10]}  Ra4 {[%clk 0:00:04]} 45. g4 {[%clk 0:00:08]}  Nd4 {[%clk 0:00:04]} 46. h4 {[%clk 0:00:08]}  Ne6 {[%clk 0:00:04]} 47. h5 {[%clk 0:00:06]}  c4 {[%clk 0:00:02]} 48. Rc6 {[%clk 0:00:06]}  Nf4 {[%clk 0:00:02]} 49. Rxc4 {[%clk 0:00:06]}  Nd3+ {[%clk 0:00:01]} 50. Kg3 {[%clk 0:00:05]}  Ra6 {[%clk 0:00:01]} 51. Nf5+ {[%clk 0:00:05]}  Kf6 {[%clk 0:00:01]} 52. Rd4 {[%clk 0:00:05]}  Nxb2 {[%clk 0:00:01]} 53. Rd6+ {[%clk 0:00:06]}  Rxd6 {[%clk 0:00:02]} 54. Nxd6 {[%clk 0:00:07]}  Ke6 {[%clk 0:00:02]} 55. Ne4 {[%clk 0:00:07]}  Nc4 {[%clk 0:00:02]} 56. Kf4 {[%clk 0:00:07]}  Nxa3 {[%clk 0:00:02]} 57. h6 {[%clk 0:00:06]}  f5 {[%clk 0:00:02]} 58. h7 {[%clk 0:00:06]} 1-0


[Site "https://www.chess.com"]

[Event "Titled Tuesday Blitz March 14 Late 2023"]
[White "Visakh N R"]
[Black "Svane, Rasmus"]
[WhiteFideId "25012223"]
[BlackFideId "4657101"]
[WhiteElo "2466"]
[BlackElo "2597"]
[Result "0-1"]
[Round "07"]
[TimeControl "180+2"]
[Date "2023.03.14"]
[WhiteClock "0:00:39"]
[BlackClock "0:00:54"]

1. e4 {[%clk 0:03:00]}  c6 {[%clk 0:02:51]} 2. Nf3 {[%clk 0:02:59]}  d5 {[%clk 0:02:52]} 3. Nc3 {[%clk 0:03:00]}  dxe4 {[%clk 0:02:53]} 4. Nxe4 {[%clk 0:03:00]}  Nf6 {[%clk 0:02:54]} 5. Qe2 {[%clk 0:03:00]}  Nxe4 {[%clk 0:02:54]} 6. Qxe4 {[%clk 0:03:00]}  Qa5 {[%clk 0:02:55]} 7. Bc4 {[%clk 0:02:58]}  Bf5 {[%clk 0:02:53]} 8. Qe5 {[%clk 0:02:48]}  Qxe5+ {[%clk 0:02:53]} 9. Nxe5 {[%clk 0:02:49]}  e6 {[%clk 0:02:53]} 10. d3 {[%clk 0:02:46]}  Bd6 {[%clk 0:02:54]} 11. Bf4 {[%clk 0:02:41]}  Nd7 {[%clk 0:02:53]} 12. Nxd7 {[%clk 0:02:14]}  Bxf4 {[%clk 0:02:49]} 13. Nc5 {[%clk 0:02:15]}  O-O-O {[%clk 0:02:49]} 14. Bb3 {[%clk 0:02:11]}  b6 {[%clk 0:02:42]} 15. Ne4 {[%clk 0:02:10]}  Bxe4 {[%clk 0:02:42]} 16. dxe4 {[%clk 0:02:11]}  Rd4 {[%clk 0:02:42]} 17. Rd1 {[%clk 0:02:05]}  Rxe4+ {[%clk 0:02:34]} 18. Kf1 {[%clk 0:02:05]}  Rd8 {[%clk 0:02:34]} 19. Rxd8+ {[%clk 0:02:05]}  Kxd8 {[%clk 0:02:35]} 20. g3 {[%clk 0:01:45]}  Bc1 {[%clk 0:02:34]} 21. Kg2 {[%clk 0:01:40]}  Bxb2 {[%clk 0:02:34]} 22. Rd1+ {[%clk 0:01:41]}  Rd4 {[%clk 0:02:34]} 23. Rxd4+ {[%clk 0:01:40]}  Bxd4 {[%clk 0:02:35]} 24. c4 {[%clk 0:01:41]}  Ke7 {[%clk 0:02:31]} 25. f4 {[%clk 0:01:36]}  Kd6 {[%clk 0:02:29]} 26. Kf3 {[%clk 0:01:36]}  f5 {[%clk 0:02:18]} 27. h3 {[%clk 0:01:28]}  Kc5 {[%clk 0:02:16]} 28. Ba4 {[%clk 0:01:28]}  a6 {[%clk 0:02:10]} 29. Ke2 {[%clk 0:01:27]}  g6 {[%clk 0:02:07]} 30. Kd3 {[%clk 0:01:20]}  e5 {[%clk 0:02:07]} 31. Ke2 {[%clk 0:01:01]}  exf4 {[%clk 0:01:53]} 32. gxf4 {[%clk 0:01:02]}  Bb2 {[%clk 0:01:50]} 33. Ke3 {[%clk 0:01:00]}  Bc1+ {[%clk 0:01:50]} 34. Kf3 {[%clk 0:01:00]}  h6 {[%clk 0:01:35]} 35. Kg3 {[%clk 0:00:58]}  g5 {[%clk 0:01:22]} 36. fxg5 {[%clk 0:00:57]}  Bxg5 {[%clk 0:01:23]} 37. h4 {[%clk 0:00:51]}  Bc1 {[%clk 0:01:16]} 38. h5 {[%clk 0:00:52]}  b5 {[%clk 0:01:10]} 39. cxb5 {[%clk 0:00:51]}  axb5 {[%clk 0:01:11]} 40. Bc2 {[%clk 0:00:50]}  f4+ {[%clk 0:01:11]} 41. Kf3 {[%clk 0:00:51]}  Kd4 {[%clk 0:01:11]} 42. Bg6 {[%clk 0:00:42]}  c5 {[%clk 0:01:09]} 43. Ke2 {[%clk 0:00:42]}  c4 {[%clk 0:01:05]} 44. Be8 {[%clk 0:00:41]}  b4 {[%clk 0:01:05]} 45. Bf7 {[%clk 0:00:41]}  Kc3 {[%clk 0:01:05]} 46. Be6 {[%clk 0:00:41]}  Be3 {[%clk 0:01:00]} 47. Bf7 {[%clk 0:00:40]}  Bc5 {[%clk 0:01:00]} 48. Be6 {[%clk 0:00:40]}  Bd6 {[%clk 0:01:00]} 49. Bd5 {[%clk 0:00:40]}  b3 {[%clk 0:00:57]} 50. axb3 {[%clk 0:00:40]}  cxb3 {[%clk 0:00:58]} 51. Bf7 {[%clk 0:00:39]}  Kc2 {[%clk 0:00:54]} 0-1


[Site "https://www.chess.com"]

[Event "Titled Tuesday Blitz March 14 Late 2023"]
[White "Costachi, Mihnea"]
[Black "Makhnev, Denis"]
[WhiteFideId "1217518"]
[BlackFideId "13707647"]
[WhiteElo "2456"]
[BlackElo "2525"]
[Result "0-1"]
[Round "07"]
[TimeControl "180+2"]
[Date "2023.03.14"]
[WhiteClock "0:00:02"]
[BlackClock "0:00:06"]

1. d4 {[%clk 0:03:00]}  Nf6 {[%clk 0:02:58]} 2. c4 {[%clk 0:03:01]}  e6 {[%clk 0:02:58]} 3. Nf3 {[%clk 0:03:01]}  d5 {[%clk 0:02:58]} 4. Nc3 {[%clk 0:03:02]}  c6 {[%clk 0:02:56]} 5. cxd5 {[%clk 0:03:02]}  exd5 {[%clk 0:02:56]} 6. Qc2 {[%clk 0:03:02]}  g6 {[%clk 0:02:48]} 7. Bg5 {[%clk 0:03:01]}  Be7 {[%clk 0:02:45]} 8. e3 {[%clk 0:03:01]}  Bf5 {[%clk 0:02:45]} 9. Bd3 {[%clk 0:03:02]}  Bxd3 {[%clk 0:02:46]} 10. Qxd3 {[%clk 0:03:02]}  O-O {[%clk 0:02:46]} 11. O-O {[%clk 0:03:02]}  Nbd7 {[%clk 0:02:47]} 12. Rfe1 {[%clk 0:03:02]}  Re8 {[%clk 0:02:47]} 13. Rab1 {[%clk 0:03:02]}  a5 {[%clk 0:02:35]} 14. a3 {[%clk 0:03:02]}  Ne4 {[%clk 0:02:36]} 15. Bf4 {[%clk 0:02:58]}  a4 {[%clk 0:02:30]} 16. Nd2 {[%clk 0:02:53]}  Nxd2 {[%clk 0:02:27]} 17. Qxd2 {[%clk 0:02:53]}  Nb6 {[%clk 0:02:27]} 18. e4 {[%clk 0:02:38]}  dxe4 {[%clk 0:02:27]} 19. Rxe4 {[%clk 0:02:39]}  Bf6 {[%clk 0:02:16]} 20. Rbe1 {[%clk 0:02:30]}  Qd7 {[%clk 0:01:28]} 21. h3 {[%clk 0:01:57]}  Bg7 {[%clk 0:01:24]} 22. Rxe8+ {[%clk 0:01:49]}  Rxe8 {[%clk 0:01:24]} 23. Rxe8+ {[%clk 0:01:50]}  Qxe8 {[%clk 0:01:24]} 24. Bc7 {[%clk 0:01:51]}  Nc4 {[%clk 0:01:14]} 25. Qc2 {[%clk 0:01:33]}  b5 {[%clk 0:01:05]} 26. Ne2 {[%clk 0:01:15]}  Qd7 {[%clk 0:00:55]} 27. Bg3 {[%clk 0:00:46]}  Bxd4 {[%clk 0:00:54]} 28. b3 {[%clk 0:00:47]}  axb3 {[%clk 0:00:29]} 29. Qxb3 {[%clk 0:00:48]}  Bg7 {[%clk 0:00:29]} 30. Nf4 {[%clk 0:00:26]}  h5 {[%clk 0:00:23]} 31. a4 {[%clk 0:00:25]}  Na5 {[%clk 0:00:24]} 32. Qb4 {[%clk 0:00:19]}  Qd1+ {[%clk 0:00:22]} 33. Kh2 {[%clk 0:00:19]}  Qxa4 {[%clk 0:00:23]} 34. Qd6 {[%clk 0:00:19]}  b4 {[%clk 0:00:18]} 35. h4 {[%clk 0:00:17]}  Qb5 {[%clk 0:00:16]} 36. Qd8+ {[%clk 0:00:14]}  Kh7 {[%clk 0:00:15]} 37. Nh3 {[%clk 0:00:15]}  f6 {[%clk 0:00:16]} 38. Nf4 {[%clk 0:00:09]}  b3 {[%clk 0:00:16]} 39. Qe8 {[%clk 0:00:09]}  Qf5 {[%clk 0:00:15]} 40. Qf7 {[%clk 0:00:02]}  b2 {[%clk 0:00:13]} 41. Ne6 {[%clk 0:00:03]}  Qxe6 {[%clk 0:00:13]} 42. Qxe6 {[%clk 0:00:04]}  b1=Q {[%clk 0:00:13]} 43. Qe7 {[%clk 0:00:03]}  Qf5 {[%clk 0:00:11]} 44. Qc7 {[%clk 0:00:03]}  Qd5 {[%clk 0:00:08]} 45. Bd6 {[%clk 0:00:03]}  Nc4 {[%clk 0:00:06]} 46. Bg3 {[%clk 0:00:02]}  Ne5 {[%clk 0:00:05]} 47. Qb7 {[%clk 0:00:02]}  Ng4+ {[%clk 0:00:05]} 48. Kh3 {[%clk 0:00:02]}  Qf5 {[%clk 0:00:05]} 49. f3 {[%clk 0:00:03]}  Ne3+ {[%clk 0:00:05]} 50. Kh2 {[%clk 0:00:03]}  Qc2 {[%clk 0:00:06]} 51. Bf2 {[%clk 0:00:01]}  Qxf2 {[%clk 0:00:05]} 52. Qxc6 {[%clk 0:00:02]}  Qxg2# {[%clk 0:00:06]} 0-1


[Site "https://www.chess.com"]

[Event "Titled Tuesday Blitz March 14 Late 2023"]
[White "Mahdavi, Reza"]
[Black "Kamsky, Gata"]
[WhiteFideId "12595926"]
[BlackFideId "2000024"]
[WhiteElo "2208"]
[BlackElo "2666"]
[Result "1/2-1/2"]
[Round "07"]
[TimeControl "180+2"]
[Date "2023.03.14"]
[WhiteClock "0:00:10"]
[BlackClock "0:00:21"]

1. e4 {[%clk 0:02:59]}  c5 {[%clk 0:02:58]} 2. Nf3 {[%clk 0:02:59]}  e6 {[%clk 0:02:57]} 3. c3 {[%clk 0:02:59]}  d5 {[%clk 0:02:56]} 4. exd5 {[%clk 0:02:59]}  exd5 {[%clk 0:02:56]} 5. d4 {[%clk 0:03:00]}  c4 {[%clk 0:02:57]} 6. b3 {[%clk 0:02:59]}  cxb3 {[%clk 0:02:57]} 7. axb3 {[%clk 0:03:00]}  Bd6 {[%clk 0:02:57]} 8. Bd3 {[%clk 0:02:59]}  Ne7 {[%clk 0:02:57]} 9. O-O {[%clk 0:02:59]}  O-O {[%clk 0:02:57]} 10. Ba3 {[%clk 0:02:59]}  Nbc6 {[%clk 0:02:56]} 11. Bxd6 {[%clk 0:02:59]}  Qxd6 {[%clk 0:02:56]} 12. Na3 {[%clk 0:02:59]}  Bf5 {[%clk 0:02:55]} 13. Bxf5 {[%clk 0:02:58]}  Nxf5 {[%clk 0:02:54]} 14. Qd3 {[%clk 0:02:59]}  Qf6 {[%clk 0:02:51]} 15. Rfe1 {[%clk 0:02:57]}  g6 {[%clk 0:02:27]} 16. Ne5 {[%clk 0:02:55]}  Rfd8 {[%clk 0:02:21]} 17. Re2 {[%clk 0:02:38]}  Rac8 {[%clk 0:02:19]} 18. Rae1 {[%clk 0:02:35]}  Nxe5 {[%clk 0:02:17]} 19. Rxe5 {[%clk 0:02:36]}  Qc6 {[%clk 0:02:04]} 20. Nb1 {[%clk 0:02:13]}  a5 {[%clk 0:02:03]} 21. g4 {[%clk 0:02:06]}  Ng7 {[%clk 0:01:59]} 22. f4 {[%clk 0:02:01]}  f6 {[%clk 0:01:45]} 23. R5e3 {[%clk 0:01:56]}  Re8 {[%clk 0:01:40]} 24. Nd2 {[%clk 0:01:52]}  Qd7 {[%clk 0:01:36]} 25. h3 {[%clk 0:01:51]}  b5 {[%clk 0:01:33]} 26. Kf2 {[%clk 0:01:34]}  a4 {[%clk 0:01:32]} 27. bxa4 {[%clk 0:01:29]}  bxa4 {[%clk 0:01:32]} 28. Rxe8+ {[%clk 0:01:29]}  Nxe8 {[%clk 0:01:29]} 29. Ra1 {[%clk 0:01:05]}  Nd6 {[%clk 0:01:27]} 30. Qa6 {[%clk 0:00:44]}  Rxc3 {[%clk 0:01:21]} 31. Qxa4 {[%clk 0:00:22]}  Qxa4 {[%clk 0:01:01]} 32. Rxa4 {[%clk 0:00:23]}  Rxh3 {[%clk 0:00:59]} 33. Ra6 {[%clk 0:00:18]}  Ne4+ {[%clk 0:00:30]} 34. Nxe4 {[%clk 0:00:16]}  dxe4 {[%clk 0:00:30]} 35. Rxf6 {[%clk 0:00:14]}  Rd3 {[%clk 0:00:30]} 36. Ke2 {[%clk 0:00:10]}  Rxd4 {[%clk 0:00:24]} 37. Ke3 {[%clk 0:00:07]}  Ra4 {[%clk 0:00:23]} 38. Re6 {[%clk 0:00:07]}  Kf7 {[%clk 0:00:23]} 39. Rxe4 {[%clk 0:00:08]}  Ra3+ {[%clk 0:00:23]} 40. Kf2 {[%clk 0:00:08]}  h5 {[%clk 0:00:22]} 41. gxh5 {[%clk 0:00:08]}  gxh5 {[%clk 0:00:22]} 42. Re5 {[%clk 0:00:09]}  h4 {[%clk 0:00:22]} 43. Rh5 {[%clk 0:00:09]}  h3 {[%clk 0:00:22]} 44. Kg1 {[%clk 0:00:09]}  Rf3 {[%clk 0:00:22]} 45. Kh2 {[%clk 0:00:09]}  Rxf4 {[%clk 0:00:21]} 46. Rxh3 {[%clk 0:00:10]}  Kf6 {[%clk 0:00:21]} 47. Kg3 {[%clk 0:00:10]}  Kg5 {[%clk 0:00:21]} 48. Rh5+ {[%clk 0:00:09]}  Kxh5 {[%clk 0:00:21]} 49. Kxf4 {[%clk 0:00:10]} 1/2-1/2


[Site "https://www.chess.com"]

[Event "Titled Tuesday Blitz March 14 Late 2023"]
[White "Hansen, Eric"]
[Black "Manelyuk, Daniil"]
[WhiteFideId "2606771"]
[BlackFideId "44173920"]
[WhiteElo "2569"]
[BlackElo "2259"]
[Result "1-0"]
[Round "07"]
[TimeControl "180+2"]
[Date "2023.03.14"]
[WhiteClock "0:00:13"]
[BlackClock "0:00:02"]

1. Nf3 {[%clk 0:03:00]}  c5 {[%clk 0:02:59]} 2. g3 {[%clk 0:02:53]}  Nc6 {[%clk 0:02:59]} 3. Bg2 {[%clk 0:02:51]}  g6 {[%clk 0:03:00]} 4. O-O {[%clk 0:02:52]}  Bg7 {[%clk 0:03:00]} 5. e4 {[%clk 0:02:52]}  e5 {[%clk 0:02:58]} 6. c3 {[%clk 0:02:50]}  Nge7 {[%clk 0:02:58]} 7. a3 {[%clk 0:02:49]}  O-O {[%clk 0:02:58]} 8. b4 {[%clk 0:02:49]}  d6 {[%clk 0:02:53]} 9. d3 {[%clk 0:02:49]}  a6 {[%clk 0:02:48]} 10. Nbd2 {[%clk 0:02:47]}  b6 {[%clk 0:02:43]} 11. Bb2 {[%clk 0:02:46]}  Be6 {[%clk 0:02:37]} 12. Qe2 {[%clk 0:02:11]}  Qd7 {[%clk 0:02:29]} 13. Ng5 {[%clk 0:02:09]}  f6 {[%clk 0:02:22]} 14. Nxe6 {[%clk 0:02:09]}  Qxe6 {[%clk 0:02:23]} 15. Nf3 {[%clk 0:02:07]}  Qb3 {[%clk 0:01:27]} 16. Rfb1 {[%clk 0:02:01]}  Qa4 {[%clk 0:01:18]} 17. Bh3 {[%clk 0:01:46]}  f5 {[%clk 0:01:12]} 18. Ng5 {[%clk 0:01:44]}  Nd8 {[%clk 0:01:06]} 19. Bc1 {[%clk 0:01:39]}  h6 {[%clk 0:01:04]} 20. Nf3 {[%clk 0:01:39]}  f4 {[%clk 0:01:00]} 21. d4 {[%clk 0:01:36]}  exd4 {[%clk 0:00:54]} 22. cxd4 {[%clk 0:01:36]}  cxd4 {[%clk 0:00:54]} 23. Bxf4 {[%clk 0:01:30]}  Nf7 {[%clk 0:00:33]} 24. Be6 {[%clk 0:01:29]}  Kh7 {[%clk 0:00:34]} 25. Ra2 {[%clk 0:01:19]}  g5 {[%clk 0:00:24]} 26. Bxf7 {[%clk 0:00:35]}  Rxf7 {[%clk 0:00:23]} 27. Bxg5 {[%clk 0:00:35]}  Raf8 {[%clk 0:00:21]} 28. Bxe7 {[%clk 0:00:33]}  Rxe7 {[%clk 0:00:22]} 29. Nh4 {[%clk 0:00:33]}  Qb5 {[%clk 0:00:13]} 30. Qxb5 {[%clk 0:00:27]}  axb5 {[%clk 0:00:14]} 31. f3 {[%clk 0:00:27]}  Rc7 {[%clk 0:00:12]} 32. Nf5 {[%clk 0:00:25]}  Rc3 {[%clk 0:00:12]} 33. Kg2 {[%clk 0:00:25]}  Ra8 {[%clk 0:00:08]} 34. Nxd6 {[%clk 0:00:16]}  Raxa3 {[%clk 0:00:08]} 35. Rxa3 {[%clk 0:00:17]}  Rxa3 {[%clk 0:00:08]} 36. Nxb5 {[%clk 0:00:16]}  Ra2+ {[%clk 0:00:09]} 37. Kh3 {[%clk 0:00:16]}  d3 {[%clk 0:00:08]} 38. Rd1 {[%clk 0:00:15]}  d2 {[%clk 0:00:09]} 39. f4 {[%clk 0:00:15]}  Bf8 {[%clk 0:00:09]} 40. Nc3 {[%clk 0:00:12]}  Rc2 {[%clk 0:00:09]} 41. Nd5 {[%clk 0:00:12]}  Kg7 {[%clk 0:00:06]} 42. Kg4 {[%clk 0:00:12]}  Kf7 {[%clk 0:00:06]} 43. Kf3 {[%clk 0:00:12]}  Bg7 {[%clk 0:00:06]} 44. Ke2 {[%clk 0:00:12]}  Rc4 {[%clk 0:00:02]} 45. Kd3 {[%clk 0:00:12]}  Rd4+ {[%clk 0:00:02]} 46. Ke3 {[%clk 0:00:13]} 1-0


[Site "https://www.chess.com"]

[Event "Titled Tuesday Blitz March 14 Late 2023"]
[White "Pham, Khoi"]
[Black "Sattarov, Bobir"]
[WhiteFideId "1054988"]
[BlackFideId "14203081"]
[WhiteElo "2572"]
[BlackElo "2351"]
[Result "1-0"]
[Round "07"]
[TimeControl "180+2"]
[Date "2023.03.14"]
[WhiteClock "0:00:36"]
[BlackClock "0:00:08"]

1. e4 {[%clk 0:03:00]}  e5 {[%clk 0:02:55]} 2. Bc4 {[%clk 0:02:59]}  Bc5 {[%clk 0:02:55]} 3. d3 {[%clk 0:02:58]}  Nc6 {[%clk 0:02:54]} 4. Nc3 {[%clk 0:02:53]}  Na5 {[%clk 0:02:33]} 5. Bb3 {[%clk 0:02:48]}  Nf6 {[%clk 0:02:28]} 6. f4 {[%clk 0:02:46]}  d6 {[%clk 0:02:14]} 7. Nf3 {[%clk 0:02:44]}  O-O {[%clk 0:02:05]} 8. f5 {[%clk 0:02:33]}  Nxb3 {[%clk 0:01:52]} 9. axb3 {[%clk 0:02:34]}  d5 {[%clk 0:01:49]} 10. Qe2 {[%clk 0:02:30]}  dxe4 {[%clk 0:01:44]} 11. dxe4 {[%clk 0:02:31]}  h6 {[%clk 0:01:32]} 12. Bd2 {[%clk 0:02:26]}  Qe7 {[%clk 0:01:09]} 13. O-O-O {[%clk 0:02:23]}  c6 {[%clk 0:01:09]} 14. g4 {[%clk 0:02:21]}  Nxg4 {[%clk 0:01:06]} 15. Rhg1 {[%clk 0:01:57]}  Bxg1 {[%clk 0:00:59]} 16. Rxg1 {[%clk 0:01:58]}  Nf6 {[%clk 0:00:57]} 17. Bxh6 {[%clk 0:01:56]}  Ne8 {[%clk 0:00:58]} 18. Qg2 {[%clk 0:01:13]}  f6 {[%clk 0:00:57]} 19. Nh4 {[%clk 0:01:09]}  b5 {[%clk 0:00:42]} 20. Ng6 {[%clk 0:01:03]}  Qc5 {[%clk 0:00:22]} 21. b4 {[%clk 0:00:45]}  Qd4 {[%clk 0:00:20]} 22. Nxf8 {[%clk 0:00:41]}  Kxf8 {[%clk 0:00:19]} 23. Bxg7+ {[%clk 0:00:41]}  Ke7 {[%clk 0:00:20]} 24. Bh6 {[%clk 0:00:40]}  Bd7 {[%clk 0:00:15]} 25. Rd1 {[%clk 0:00:40]}  Qxb4 {[%clk 0:00:14]} 26. Qg8 {[%clk 0:00:39]}  Nd6 {[%clk 0:00:08]} 27. Qxa8 {[%clk 0:00:36]} 1-0


[Site "https://www.chess.com"]

[Event "Titled Tuesday Blitz March 14 Late 2023"]
[White "Pranav, V"]
[Black "Priasmoro, Novendra"]
[WhiteFideId "25060783"]
[BlackFideId "7105029"]
[WhiteElo "2500"]
[BlackElo "2412"]
[Result "1-0"]
[Round "07"]
[TimeControl "180+2"]
[Date "2023.03.14"]
[WhiteClock "0:02:07"]
[BlackClock "0:00:03"]

1. e4 {[%clk 0:03:00]}  e5 {[%clk 0:02:55]} 2. Nf3 {[%clk 0:03:01]}  Nc6 {[%clk 0:02:56]} 3. Bb5 {[%clk 0:03:01]}  a6 {[%clk 0:02:56]} 4. Ba4 {[%clk 0:03:00]}  Nf6 {[%clk 0:02:56]} 5. O-O {[%clk 0:03:01]}  b5 {[%clk 0:02:55]} 6. Bb3 {[%clk 0:03:01]}  Bc5 {[%clk 0:02:56]} 7. c3 {[%clk 0:03:01]}  d6 {[%clk 0:02:55]} 8. d4 {[%clk 0:03:01]}  Bb6 {[%clk 0:02:50]} 9. a4 {[%clk 0:03:01]}  Rb8 {[%clk 0:02:49]} 10. Qd3 {[%clk 0:03:01]}  O-O {[%clk 0:02:15]} 11. Bg5 {[%clk 0:03:00]}  h6 {[%clk 0:02:03]} 12. Bxf6 {[%clk 0:02:59]}  Qxf6 {[%clk 0:02:04]} 13. axb5 {[%clk 0:03:00]}  axb5 {[%clk 0:02:01]} 14. Qxb5 {[%clk 0:03:00]}  Bd7 {[%clk 0:01:06]} 15. Bd5 {[%clk 0:02:35]}  Bxd4 {[%clk 0:00:17]} 16. Qa4 {[%clk 0:02:35]}  Rxb2 {[%clk 0:00:05]} 17. Bxc6 {[%clk 0:02:30]}  Bg4 {[%clk 0:00:03]} 18. Nxd4 {[%clk 0:02:15]}  exd4 {[%clk 0:00:03]} 19. Qxd4 {[%clk 0:02:16]}  Qg5 {[%clk 0:00:03]} 20. Qe3 {[%clk 0:02:07]} 1-0


[Site "https://www.chess.com"]

[Event "Titled Tuesday Blitz March 14 Late 2023"]
[White "Filgueira, Hernan"]
[Black "Kozak, Adam"]
[WhiteFideId "101770"]
[BlackFideId "753246"]
[WhiteElo "2363"]
[BlackElo "2469"]
[Result "0-1"]
[Round "07"]
[TimeControl "180+2"]
[Date "2023.03.14"]
[WhiteClock "0:00:06"]
[BlackClock "0:01:51"]

1. c4 {[%clk 0:02:59]}  c5 {[%clk 0:02:59]} 2. Nf3 {[%clk 0:02:58]}  Nc6 {[%clk 0:02:59]} 3. Nc3 {[%clk 0:02:58]}  g6 {[%clk 0:02:59]} 4. e3 {[%clk 0:02:57]}  Bg7 {[%clk 0:02:59]} 5. d4 {[%clk 0:02:57]}  d6 {[%clk 0:02:59]} 6. d5 {[%clk 0:02:53]}  Na5 {[%clk 0:02:56]} 7. Bd3 {[%clk 0:02:44]}  Bxc3+ {[%clk 0:02:55]} 8. bxc3 {[%clk 0:02:43]}  e5 {[%clk 0:02:55]} 9. dxe6 {[%clk 0:02:22]}  Bxe6 {[%clk 0:02:55]} 10. Nd2 {[%clk 0:02:13]}  Nf6 {[%clk 0:02:47]} 11. Qe2 {[%clk 0:02:05]}  O-O {[%clk 0:02:42]} 12. Nb3 {[%clk 0:02:04]}  Nd7 {[%clk 0:02:41]} 13. f4 {[%clk 0:02:01]}  f5 {[%clk 0:02:40]} 14. O-O {[%clk 0:01:57]}  Nf6 {[%clk 0:02:39]} 15. Nd2 {[%clk 0:01:53]}  Re8 {[%clk 0:02:38]} 16. Nf3 {[%clk 0:01:23]}  Qd7 {[%clk 0:02:28]} 17. a4 {[%clk 0:00:52]}  h6 {[%clk 0:02:23]} 18. Bd2 {[%clk 0:00:48]}  Qf7 {[%clk 0:02:22]} 19. Be1 {[%clk 0:00:45]}  Bxc4 {[%clk 0:02:21]} 20. Bh4 {[%clk 0:00:45]}  Ne4 {[%clk 0:02:21]} 21. Qc2 {[%clk 0:00:32]}  Bxd3 {[%clk 0:02:19]} 22. Qxd3 {[%clk 0:00:32]}  Qc4 {[%clk 0:02:20]} 23. Qc2 {[%clk 0:00:30]}  Nxc3 {[%clk 0:02:16]} 24. Kh1 {[%clk 0:00:27]}  Rxe3 {[%clk 0:02:15]} 25. Bf6 {[%clk 0:00:23]}  Ne4 {[%clk 0:02:07]} 26. Qxc4+ {[%clk 0:00:16]}  Nxc4 {[%clk 0:02:07]} 27. Bh4 {[%clk 0:00:16]}  Re8 {[%clk 0:02:06]} 28. h3 {[%clk 0:00:15]}  b6 {[%clk 0:02:05]} 29. Rfd1 {[%clk 0:00:14]}  Nc3 {[%clk 0:01:56]} 30. Rdc1 {[%clk 0:00:12]}  d5 {[%clk 0:01:56]} 31. Be1 {[%clk 0:00:09]}  d4 {[%clk 0:01:55]} 32. Bxc3 {[%clk 0:00:07]}  Rxc3 {[%clk 0:01:54]} 33. Rd1 {[%clk 0:00:06]}  Rxf3 {[%clk 0:01:52]} 34. gxf3 {[%clk 0:00:06]}  Re2 {[%clk 0:01:52]} 35. a5 {[%clk 0:00:06]}  Nxa5 {[%clk 0:01:51]} 36. Rxa5 {[%clk 0:00:05]}  bxa5 {[%clk 0:01:51]} 37. Ra1 {[%clk 0:00:06]}  d3 {[%clk 0:01:51]} 0-1


[Site "https://www.chess.com"]